lending/lending_fUSD_20240207
["ID","MTS","AMOUNT","RATE_DAILY","PERIOD"]
[313401255,1707311329728,-162.59300442,0.00030493,2]
[313401256,1707311329750,-7999.99,0.00030501,14]
[313401257,1707311329873,-1289.72395832,0.00030501,2]
[313401258,1707311329894,-2685.691251,0.000306,7]
[313401259,1707311329916,-205.0,0.00030648,2]
[313401260,1707311329939,-311.0237239,0.00030779,4]
[313401261,1707311329962,-680.56828361,0.00030779,4]
[313401262,1707311329985,-1000.0,0.00030779,7]
[313401263,1707311330008,-1000.0,0.00030779,7]
[313401264,1707311330031,-150.0,0.000308,2]
[313401265,1707311330053,-150.81,0.0003082,2]
[313401266,1707311330076,-1289.72395832,0.00030866,2]
[313401267,1707311330098,-3643.1,0.00030892,2]
[313401268,1707311330119,-3441.17022114,0.00031,5]
[313401269,1707311330140,-150.0,0.00031,2]
[313401270,1707311330163,-1289.72395832,0.0003108,2]
[313401271,1707311330185,-1500.0,0.000311,7]
[313401272,1707311330207,-1000.0,0.000312,5]
[313401273,1707311330229,-154.71592297,0.00031288,2]
[313401274,1707311330250,-200.0,0.00031351,2]
[313401275,1707311330272,-800.0,0.00031351,2]
[313401276,1707311330293,-200.0,0.00031351,3]
[313401277,1707311330316,-287.2,0.00031374,2]
[313401278,1707311330339,-1289.72395832,0.00031413,2]
[313401279,1707311330362,-500.0,0.00031502,2]
[313401280,1707311330384,-453.52874299,0.00031502,2]
[313401281,1707311330407,-500.0,0.00031502,2]
[313401282,1707311330430,-500.0,0.00031502,2]
[313401283,1707311330463,-500.0,0.00031502,2]
[313401284,1707311330487,-500.0,0.00031502,2]
[313401285,1707311330511,-500.0,0.00031502,2]
[313401286,1707311330534,-500.0,0.00031502,2]
[313401287,1707311330558,-500.0,0.00031502,2]
[313401288,1707311330585,-500.0,0.00031502,2]
[313401289,1707311330608,-500.0,0.00031502,2]
[313401290,1707311330639,-511.29370604,0.00031502,2]
[313401291,1707311330677,-500.0,0.00031502,2]
[313401292,1707311330714,-500.0,0.00031502,2]
[313401293,1707311330751,-500.0,0.00031502,2]
[313401294,1707311330785,-500.0,0.00031502,2]
[313401295,1707311330824,-500.0,0.00031502,2]
[313401296,1707311330861,-500.0,0.00031502,2]
[313401297,1707311330898,-500.0,0.00031502,2]
[313401298,1707311330934,-500.0,0.00031502,2]
[313401299,1707311330971,-500.0,0.00031502,2]
[313401300,1707311330999,-32362.5785,0.00031504,2]
[313401301,1707311331041,-93293.2253,0.00031504,2]
[313401302,1707311331071,-245000.0,0.00031505,2]
[313401303,1707311331105,-7079.58306444,0.00031505,3]
[313401304,1707311331137,-300.0,0.000316,4]
[313401305,1707311331167,-98229.1291298,0.000316,2]
[313401306,1707311331197,-150.0,0.000316,4]
[313401307,1707311331227,-3598.030652,0.000316,2]
[313401308,1707311331257,-237.576056,0.000316,2]
[313401309,1707311331287,-656.7194218,0.000316,2]
[313401310,1707311331316,-2348.7047177,0.000316,2]
[313401311,1707311331345,-200.0,0.000316,2]
[313401312,1707311331375,-1000.0,0.000316,2]
[313401313,1707311331405,-800.0,0.000316,11]
[313401314,1707311331435,-606.8937173,0.000316,2]
[313401315,1707311331465,-1500.0,0.000316,7]
[313401316,1707311331496,-162.3492961,0.00031603,4]
[313401317,1707311331526,-233.75024833,0.00031603,4]
[313401318,1707311331555,-197.53896978,0.00031603,4]
[313401319,1707311331584,-282.71820828,0.00031603,4]
[313401320,1707311331613,-2095.28474415,0.00031603,4]
[313401321,1707311331642,-200.0,0.00031604,2]
[313401322,1707311331675,-315.18305531,0.00031604,4]
[313401323,1707311331697,-500.0,0.00031604,2]
[313401324,1707311331876,-322.0,0.00031605,5]
[313401325,1707311331901,-20705.93393198,0.00031605,7]
[313401326,1707311331925,-50000.0,0.00031605,7]
[313401327,1707311331948,-50000.0,0.00031605,7]
[313401328,1707311331971,-50000.0,0.00031605,7]
[313401329,1707311331995,-39038.34105425,0.00031605,7]
[313401330,1707311332017,-50000.0,0.00031605,7]
[313401331,1707311332040,-15430.38257763,0.00031605,7]
[313401332,1707311332061,-200.0,0.00031605,2]
[313401333,1707311332088,-5641.07886171,0.00031605,2]
[313401334,1707311332110,-4262.34281777,0.00031605,7]
[313401335,1707311332133,-16880.56579809,0.00031605,7]
[313401336,1707311332153,-856.190007,0.00031605,60]
[313401337,1707311332176,-24238.15505314,0.00031605,7]
[313401338,1707311332199,-50000.0,0.00031605,7]
[313401339,1707311332222,-50000.0,0.00031605,7]
[313401340,1707311332244,-16812.13057443,0.00031605,7]
[313401341,1707311332266,-990.0,0.00031605,7]
[313401342,1707311332288,-990.0,0.00031605,7]
[313401343,1707311332309,-990.0,0.00031605,7]
[313401344,1707311332331,-990.0,0.00031605,7]
[313401345,1707311332352,-990.0,0.00031605,7]
[313401346,1707311332373,-990.0,0.00031605,7]
[313401347,1707311332394,-990.0,0.00031605,7]
[313401348,1707311332417,-990.0,0.00031605,7]
[313401349,1707311332438,-990.0,0.00031605,7]
[313401350,1707311332460,-990.0,0.00031605,7]
[313401351,1707311332483,-990.0,0.00031605,7]
[313401352,1707311332505,-208.51037,0.00031605,7]
[313401353,1707311332530,-50000.0,0.00031605,7]
[313401354,1707311332552,-180.0,0.00031644,2]
[313401355,1707311332574,-150.0,0.0003166,2]
[313401356,1707311332597,-150.0,0.0003166,2]
[313401357,1707311332619,-150.0,0.0003166,2]
[313401358,1707311332640,-150.0,0.0003166,2]
[313401359,1707311332662,-248.87158,0.0003166,2]
[313401360,1707311332685,-1600.0,0.000317,11]
[313401361,1707311332707,-604.90712687,0.000317,2]
[313401362,1707311332730,-176.3546774,0.000317,2]
[313401363,1707311332752,-170.4467699,0.000317,2]
[313401364,1707311332773,-2161.33950216,0.00031701,2]
[313401365,1707311332797,-1597.11914472,0.00031726,2]
[313401366,1707311332819,-5000.0,0.000318,2]
[313401367,1707311332843,-162.59300442,0.000318,2]
[313401368,1707311332869,-2400.0,0.000318,11]
[313401369,1707311332891,-223474.307646,0.000318,3]
[313401370,1707311332913,-1289.72395832,0.00031801,2]
[313401371,1707311332934,-191.86767239,0.00031844,2]
[313401372,1707311332956,-80870.9661749,0.00031878,2]
[313401373,1707311332977,-833.161992,0.00031878,2]
[313401374,1707311332999,-2979.7375198,0.00031878,2]
[313401375,1707311333021,-716.6739692,0.00031878,2]
[313401376,1707311333043,-500.0,0.00031899,7]
[313401377,1707311333065,-533.76821715,0.00031899,7]
[313401378,1707311333088,-500.0,0.00031899,7]
[313401379,1707311333110,-413.153319,0.00031899,7]
[313401380,1707311333132,-500.0,0.00031899,7]
[313401381,1707311333155,-500.0,0.00031899,7]
[313401382,1707311333176,-469.84019053,0.00031899,7]
[313401383,1707311333199,-500.0,0.00031899,7]
[313401384,1707311333221,-500.0,0.00031899,7]
[313401385,1707311333242,-393.84782386,0.00031899,7]
[313401386,1707311333264,-246.60739112,0.00031899,7]
[313401387,1707311333287,-500.0,0.00031899,7]
[313401388,1707311333309,-461.49618053,0.00031899,7]
[313401389,1707311333331,-500.0,0.00031899,7]
[313401390,1707311333353,-500.0,0.00031899,7]
[313401391,1707311333375,-383.07763879,0.00031899,7]
[313401392,1707311333396,-949956.499588,0.000319,3]
[313401393,1707311333419,-3300.0,0.000319,11]
[313401394,1707311333442,-500.0,0.00031944,2]
[313401395,1707311333465,-1107.3599994,0.00031979,4]
[313401396,1707311333653,489.20933772,0.00022535,2]
[313401397,1707311333876,2605.00013427,0.00022536,2]
[313401398,1707311333932,3573.92552262,0.000227,2]
[313401399,1707311333974,162.83781801,0.000315,2]
[313401400,1707311334055,1000.0,0.00022898,2]
[313401401,1707311342214,17203.7798541,0.000316,2]
[313401402,1707311342409,37.34000969,0.00031878,2]
[313401403,1707311384562,1852.42,0.00022109,2]
[313401410,1707311432086,-477.75443784,0.00022897,2]
[313401411,1707311432095,-324.6447,0.00022898,2]
[313401412,1707311432104,-427.88069011,0.00030779,4]
[313401413,1707311432114,-150.0,0.000308,2]
[313401414,1707311432123,-1237.46097854,0.00031134,2]
[313401415,1707311432135,-52.26297979,0.00031134,2]
[313401416,1707311432144,-577.17444406,0.00031385,2]
[313401417,1707311432183,-712.54951427,0.00031385,2]
[313401418,1707311432192,-674.99595127,0.00031778,2]
[313401419,1707311432204,-2961.70000088,0.00031778,2]
[313401420,1707311432217,-1363.30404785,0.00031778,2]
[313401421,1707311432227,-2647.48084136,0.00031877,4]
[313401422,1707311432236,-377.18270489,0.00031877,4]
[313401423,1707311432245,-1724.40414233,0.00031878,14]
[313401424,1707311432254,-1101.10916338,0.00031878,2]
[313401425,1707311432266,-1266.75800943,0.00031878,2]
[313401426,1707311432278,-319.91350895,0.00031878,2]
[313401427,1707311432293,-12580.29075354,0.00031878,2]
[313401428,1707311432442,-2742.301515,0.00031878,2]
[313401429,1707311432464,-265.25084561,0.00031878,2]
[313401430,1707311432476,-568.82257769,0.00031878,2]
[313401431,1707311432487,-1433.96387261,0.00031878,2]
[313401432,1707311432497,-325.30990503,0.00031878,2]
[313401433,1707311432508,-791.25195088,0.00031878,2]
[313401434,1707311432518,-200.0,0.00031878,2]
[313401435,1707311432527,-1185.76240488,0.00031973,2]
[313401436,1707311438085,-334.41374848,0.00031973,2]
[313401437,1707311438140,-10.30516724,0.00031973,2]
[313401438,1707311438149,-1008.6062196,0.00031995,2]
[313401439,1707311438162,-281.11773873,0.00031995,2]
[313401440,1707311438172,-718.88226127,0.0003212,2]
[313401441,1707311438183,-399.37201755,0.0003212,2]
[313401442,1707311438195,-2828.8378332,0.0003212,2]
[313401443,1707311438254,-1975.73788798,0.0003212,2]
[313401444,1707311438264,-1912.61,0.00032125,2]
[313401445,1707311438273,-5478.5057119,0.00032144,2]
[313401446,1707311438283,-1393.52791083,0.00032164,4]
[313401447,1707311438292,-6482.22309777,0.00032164,4]
[313401448,1707311438301,-297.99411555,0.00032164,4]
[313401449,1707311438311,-969.83,0.00032165,2]
[313401450,1707311438320,-214.28194494,0.00032165,90]
[313401451,1707311438329,-516.45391394,0.00032165,4]
[313401452,1707311438339,-1646.50987432,0.00032165,4]
[313401453,1707311438348,-481.21368437,0.00032165,4]
[313401454,1707311438357,-381.56425444,0.00032165,4]
[313401455,1707311438366,-1368.59535414,0.00032165,4]
[313401456,1707311438375,-531.20352733,0.00032165,4]
[313401457,1707311438385,-343.09067253,0.00032165,4]
[313401458,1707311438394,-525.46610018,0.00032165,4]
[313401459,1707311438403,-6593.14981585,0.00032166,3]
[313401460,1707311438416,-486.43324854,0.00032166,3]
[313401461,1707311438425,-1289.72395834,0.00032257,2]
[313401462,1707311438434,-154.71592297,0.00032319,2]
[313401463,1707311438443,-500.0,0.00032426,2]
[313401464,1707311438453,-250.0,0.00032467,2]
[313401465,1707311438463,-2719.64,0.00032475,2]
[313401466,1707311438473,-155.0,0.00032497,2]
[313401467,1707311438483,-720.66,0.00032498,2]
[313401468,1707311438492,-713.84,0.00032498,2]
[313401469,1707311438503,-1000.08,0.000325,8]
[313401470,1707311438512,-10048.1905172,0.00032512,2]
[313401471,1707311438524,-3310.1894828,0.00032512,2]
[313401472,1707311438533,-500.0,0.00032537,2]
[313401473,1707311438543,-4323.89,0.00032581,2]
[313401474,1707311438553,-735.19,0.00032598,2]
[313401475,1707311438563,-300.0,0.000326,5]
[313401476,1707311438573,-1091.53953186,0.00032798,4]
[313401477,1707311438583,-150.1,0.000328,3]
[313401479,1707311438592,-7079.58306439,0.00032828,4]
[313401481,1707311438603,-150.0,0.00032877,30]
[313401483,1707311438613,-150.0,0.00032877,30]
[313401485,1707311438623,-150.0,0.00032877,30]
[313401487,1707311438634,-1038.7990878,0.00032879,5]
[313401488,1707311438643,-500.0,0.000329,2]
[313401490,1707311438653,-205.0,0.0003291,2]
[313401492,1707311438665,-1000.0,0.00033,30]
[313401494,1707311438676,-550.0,0.00033,3]
[313401496,1707311438686,-2205.761,0.00033021,2]
[313401498,1707311438697,-305.4296225,0.00033021,2]
[313401500,1707311438712,-2212.5703775,0.00033021,2]
[313401503,1707311438724,-2859.71162899,0.000331,2]
[313401505,1707311438734,-154.03,0.000332,2]
[313401507,1707311438745,-154.03,0.000332,2]
[313401508,1707311438755,-154.03,0.000332,2]
[313401510,1707311438765,-262.40173733,0.00033248,2]
[313401511,1707311438776,-155.49937617,0.00033321,4]
[313401512,1707311438786,-155.84303452,0.00033384,4]
[313401513,1707311438795,-155.26886314,0.00033384,4]
[313401514,1707311438805,-155.20561077,0.00033384,4]
[313401515,1707311438816,-161.05937526,0.00033466,4]
[313401516,1707311438827,-328.24238237,0.00033466,4]
[313401517,1707311438836,-2912.44051013,0.00033488,4]
[313401518,1707311438846,-156.03338218,0.00033488,4]
[313401519,1707311438855,-376.66029606,0.00033488,4]
[313401520,1707311438866,-7079.58306439,0.00033489,5]
[313401521,1707311438875,-1799.62793705,0.000335,14]
[313401522,1707311438884,-300.0,0.000336,7]
[313401523,1707311439003,-150.81,0.00033622,2]
[313401524,1707311439013,-287.2,0.00033638,2]
[313401525,1707311439023,-150.0,0.00033661,7]
[313401526,1707311439033,-303.268,0.00033661,7]
[313401527,1707311439042,-150.088,0.00033661,7]
[313401528,1707311439051,-153.72223678,0.000339,2]
[313401529,1707311439061,-153.72223677,0.000339,2]
[313401530,1707311439070,-153.72223677,0.000339,2]
[313401531,1707311439079,-1024.0,0.00034,3]
[313401532,1707311439088,-2514.0,0.00034,2]
[313401533,1707311439097,-9108.71,0.00034,3]
[313401534,1707311439107,-270.0,0.00034,120]
[313401535,1707311439116,-400.11971,0.00034,2]
[313401536,1707311439126,-152.0,0.00034071,3]
[313401537,1707311439135,-2805.70586599,0.0003415,6]
[313401538,1707311439367,-637.82752966,0.0003415,6]
[313401539,1707311439379,-3636.04966874,0.0003415,6]
[313401540,1707311439389,-153.72223677,0.00034345,2]
[313401541,1707311439399,-2500.0,0.000345,5]
[313401542,1707311439410,-150.0,0.00034548,10]
[313401543,1707311439419,-1368.33305445,0.0003455,7]
[313401544,1707311439429,-300.0,0.000346,8]
[313401545,1707311439438,-612.36596734,0.00034647,15]
[313401546,1707311439449,-500.0,0.00034647,15]
[313401547,1707311439459,-2863.22618833,0.00034648,2]
[313401548,1707311439471,-1679.83585489,0.00034648,2]
[313401549,1707311439488,-781.88578096,0.00034648,2]
[313401550,1707311439500,-769.22313,0.00034648,2]
[313401551,1707311439511,-6911.23225014,0.00034648,2]
[313401552,1707311439528,-257.84999975,0.00034648,2]
[313401553,1707311439556,-19257.55958767,0.00034648,2]
[313401554,1707311439568,-974.32618933,0.00034648,2]
[313401555,1707311439579,-8612.43843895,0.00034648,2]
[313401556,1707311439590,-541.98537446,0.00034648,2]
[313401557,1707311439602,-1788.25695,0.00034648,2]
[313401558,1707311439613,-729.82228752,0.00034648,2]
[313401559,1707311439624,-750.15053776,0.00034648,2]
[313401560,1707311439635,-2498.94,0.00034648,2]
[313401561,1707311439647,-10144.35647989,0.00034648,2]
[313401562,1707311439660,-616.32583803,0.00034648,2]
[313401563,1707311439672,-3466.66028671,0.00034648,2]
[313401564,1707311439685,-7619.59772748,0.00034648,2]
[313401565,1707311439696,-568.065,0.00034648,2]
[313401567,1707311440707,-1033.91416577,0.00033955,3]
[313401568,1707311440718,-329807.98193795,0.00034648,2]
[313401569,1707311441407,-143793.59800754,0.00034648,2]
[313401570,1707311441420,-61035.15846968,0.00034648,2]
[313401571,1707311441469,-1082.02499944,0.00034648,2]
[313401573,1707311443183,-613.8582591,0.00022898,2]
[313401574,1707311443196,-1886.1417409,0.00022898,2]
[313401575,1707311443206,-1573.71542868,0.00032497,4]
[313401576,1707311443218,-260.63381433,0.00032497,4]
[313401577,1707311443241,-405.5664405,0.00032497,4]
[313401578,1707311443254,-788.34185418,0.00032497,4]
[313401579,1707311443365,-471.74264271,0.00032497,4]
[313401580,1707311443374,-657.77878028,0.00034646,4]
[313401584,1707311444487,-2254.56652156,0.00034646,4]
[313401585,1707311444497,-2313.55493683,0.00034647,4]
[313401586,1707311444597,-2325.98973657,0.00034647,4]
[313401587,1707311444607,-1769.10517365,0.00034648,2]
[313401615,1707311448832,-1251.4785667,0.00034647,4]
[313401616,1707311448842,-14997.25648532,0.00034648,2]
[313401617,1707311448857,-59039.80539068,0.00034648,2]
[313401618,1707311448868,-4183.00863797,0.0003465,2]
[313401619,1707311448883,-15887.96835762,0.0003465,2]
[313401620,1707311448895,-57754.86271784,0.0003465,2]
[313401621,1707311448909,-18032.37016631,0.0003465,2]
[313401622,1707311448921,-29868.65862832,0.0003465,2]
[313401623,1707311448932,-3825.1166033,0.0003465,2]
[313401624,1707311448945,-32592.01435,0.0003465,2]
[313401625,1707311448965,-584.99795,0.0003465,2]
[313401626,1707311448977,-339.05105135,0.0003465,2]
[313401627,1707311449079,-664.62392199,0.0003465,2]
[313401628,1707311491069,403.18,0.00020191,2]
[313401629,1707311491371,403.18,0.00022455,2]
[313401634,1707311818571,891.71774947,0.00022455,2]
[313401636,1707311838557,887.40254075,0.00022455,2]
[313401647,1707311914584,887.79146733,0.00022455,2]
[313401648,1707311932702,887.01361417,0.00022455,2]
[313401649,1707311952579,887.40254075,0.00022455,2]
[313401650,1707311970581,871.17698046,0.00022455,2]
[313401678,1707312632404,-294.88375833,0.00024386,2]
[313401679,1707312632416,-194.32557939,0.00024386,2]
[313401680,1707312632426,-11980.2906,0.00024387,2]
[313401681,1707312632435,-648.80908148,0.00024413,2]
[313401682,1707312632484,-1956.19105279,0.00024413,2]
[313401683,1707312632494,-1225.47377789,0.00024413,2]
[313401684,1707312632503,-451.91879275,0.00024413,2]
[313401685,1707312632515,-25.83564509,0.00024413,2]
[313401686,1707312632525,-1045.64554811,0.00024413,2]
[313401687,1707312632534,-757.69,0.00024415,2]
[313401688,1707312632544,-150.0,0.00024499,2]
[313401689,1707312632553,-2965.33340559,0.000245,2]
[313401690,1707312632569,-833.57140238,0.000245,2]
[313401691,1707312632581,-299.99,0.000245,2]
[313401693,1707312632592,-865.6031578,0.000245,2]
[313401695,1707312632602,-2979.168,0.00024513,2]
[313401697,1707312632611,-200.0,0.00025,2]
[313401699,1707312632621,-280.4288422,0.00025,3]
[313401737,1707312638312,-69.5711578,0.00025,3]
[313401738,1707312638322,-999.99,0.00025,2]
[313401739,1707312638331,-735.36,0.00025283,2]
[313401740,1707312638341,-593.36,0.00025283,2]
[313401741,1707312638350,-3398.11,0.00025283,2]
[313401742,1707312638360,-370.29,0.00025283,2]
[313401743,1707312638369,-409.64,0.00025682,2]
[313401744,1707312638379,-641.76295966,0.00025682,2]
[313401745,1707312638400,-69.44704034,0.00025682,2]
[313401746,1707312638410,-150.0,0.00026145,2]
[313401747,1707312638419,-500.35,0.0002634,2]
[313401748,1707312638429,-1432.53108619,0.00026477,2]
[313401749,1707312638441,-4099.87793366,0.00026477,2]
[313401750,1707312638484,-9705.54098015,0.00026477,2]
[313401751,1707312638494,-250.0,0.00026578,2]
[313401752,1707312638503,-170.22,0.00026578,2]
[313401753,1707312638512,-3851.01,0.00026584,2]
[313401754,1707312638522,-2732.32,0.00026642,2]
[313401755,1707312638531,-757.69,0.00026679,2]
[313401756,1707312638540,-750.0,0.00026704,2]
[313401757,1707312638550,-2395.97,0.00026834,2]
[313401758,1707312638559,-250.0,0.00026834,2]
[313401759,1707312638569,-935.3195,0.00026881,2]
[313401760,1707312638578,-495.33,0.00026905,2]
[313401761,1707312638587,-49349.9622524,0.00026981,2]
[313401762,1707312638600,-10222.25511676,0.00026981,2]
[313401763,1707312638652,-11049.80814694,0.00026981,2]
[313401764,1707312638664,-21664.26860537,0.00026981,2]
[313401765,1707312638688,-716.637915,0.00026981,2]
[313401766,1707312638700,-2966.31717567,0.00026981,2]
[313401767,1707312638713,-399.13216622,0.00026981,2]
[313401768,1707312638725,-302.88786363,0.00026981,2]
[313401770,1707312638759,-8489.79513644,0.00026981,2]
[313401982,1707312640890,-4327.06658037,0.00026981,2]
[313401996,1707312641000,-6435.48618723,0.00026981,2]
[313402003,1707312641058,-15073.6,0.00026981,2]
[313402005,1707312641071,-7904.44989874,0.00026981,2]
[313402007,1707312641083,-3192.49164133,0.00026981,2]
[313402010,1707312641093,-335.83472229,0.00027,3]
[313402012,1707312641106,-64.16527771,0.00027,3]
[313402014,1707312641115,-1207.50835867,0.00027023,2]
[313402017,1707312641131,-361.04,0.00027023,2]
[313402019,1707312641143,-460.78164133,0.00027023,2]
[313402021,1707312641152,-2881.54,0.00027299,2]
[313402023,1707312641161,-2518.0,0.00028265,2]
[313402025,1707312641170,-1466.51,0.00028315,2]
[313402027,1707312641180,-170.22,0.0002835,2]
[313402029,1707312641191,-156.99,0.00028516,2]
[313402031,1707312641200,-775.87,0.00028532,2]
[313402033,1707312641210,-500.0,0.00028538,2]
[313402035,1707312641219,-11827.51,0.00028547,2]
[313402037,1707312641228,-1852.42,0.00028577,2]
[313402039,1707312641238,-2029.33,0.00028667,2]
[313402041,1707312641247,-2000.0,0.00028775,2]
[313402043,1707312641256,-2975.16,0.00028788,2]
[313402045,1707312641266,-500.0,0.00028883,2]
[313402047,1707312641276,-173.01,0.000289,2]
[313402049,1707312641285,-757.69,0.00028943,2]
[313402051,1707312641294,-2523.44,0.00028967,2]
[313402053,1707312641304,-450.0,0.00029,3]
[313402055,1707312641313,-157.57,0.00029018,2]
[313402057,1707312641322,-2381.76,0.00029113,2]
[313402059,1707312641331,-2705.0,0.00029113,2]
[313402061,1707312641341,-4507.69,0.00029113,2]
[313402063,1707312641351,-23900.0,0.00029113,2]
[313402065,1707312641360,-157.57,0.00029126,2]
[313402067,1707312641369,-250.0,0.00029162,2]
[313402069,1707312641379,-3804.73263599,0.00029213,2]
[313402071,1707312641388,-157.57,0.00029234,2]
[313402073,1707312641397,-549.63,0.0002924,2]
[313402075,1707312641406,-17963.859,0.00029242,2]
[313402078,1707312641416,-305.87,0.00029326,2]
[313402079,1707312641425,-157.57,0.00029342,2]
[313402081,1707312641434,-157.57,0.0002945,2]
[313402084,1707312641444,-1926.345,0.00029458,2]
[313402086,1707312641453,-157.57,0.00029558,2]
[313402088,1707312641463,-157.57,0.00029666,2]
[313402090,1707312641473,-224.13,0.00029669,2]
[313402092,1707312641483,-157.57,0.00029774,2]
[313402094,1707312641492,-157.57,0.00029882,2]
[313402096,1707312641501,-157.57,0.0002999,2]
[313402098,1707312641511,-155.0,0.0003,2]
[313402100,1707312641520,-157.57,0.00030098,2]
[313402102,1707312641529,-170.22,0.00030122,2]
[313402104,1707312641539,-157.57,0.00030206,2]
[313402106,1707312641548,-2029.33,0.00030311,2]
[313402108,1707312641557,-157.57,0.00030314,2]
[313402110,1707312641566,-157.57,0.00030422,2]
[313402112,1707312641575,-157.57,0.0003053,2]
[313402114,1707312641585,-347.16676091,0.00030779,4]
[313402116,1707312641594,-190.94171849,0.00030779,5]
[313402118,1707312641604,-1000.0,0.00030779,7]
[313402120,1707312641613,-1000.0,0.00030779,7]
[313402122,1707312641622,-1000.0,0.00030779,7]
[313402124,1707312641631,-250.15427355,0.00030779,4]
[313402126,1707312641643,-150.0,0.000308,2]
[313402128,1707312641652,-500.0,0.00031,3]
[313402130,1707312641661,-757.69,0.00031207,2]
[313402132,1707312641672,-2518.0,0.00031265,2]
[313402134,1707312641681,-206.7629,0.00031503,2]
[313402136,1707312641691,-1000.0,0.00031504,2]
[313402138,1707312641700,-1561.71227999,0.00031505,5]
[313402140,1707312641710,-224.48492261,0.00031602,4]
[313402142,1707312641719,-16100.33449146,0.00031603,4]
[313402144,1707312641728,-19213.21148707,0.00031605,7]
[313402146,1707312641738,-50000.0,0.00031605,7]
[313402148,1707312641747,-11599.30568301,0.00031605,7]
[313402150,1707312641756,-14154.92134498,0.00031605,7]
[313402152,1707312641765,-10239.25616484,0.00031605,7]
[313402154,1707312641775,-180.0,0.00031644,2]
[313402169,1707312641901,-38144.4873313,0.000318,3]
[313402171,1707312641911,-170.22,0.00031894,2]
[313402173,1707312641921,-2119.13818507,0.00031945,3]
[313402175,1707312641931,-2029.33,0.00031955,2]
[313402177,1707312641940,-775.87,0.00032098,2]
[313402179,1707312641950,-150.0,0.000325,2]
[313402181,1707312641959,-200.0,0.000325,2]
[313402183,1707312641968,-1561.71227994,0.00032612,6]
[313402185,1707312641978,-200.0,0.00032862,2]
[313402187,1707312641988,-200.0,0.00032862,3]
[313402189,1707312641997,-500.0,0.000329,2]
[313402191,1707312642006,-2119.13818507,0.0003299,4]
[313402193,1707312642015,-2000.0,0.00033,2]
[313402195,1707312642024,-550.0,0.00033,3]
[313402197,1707312642034,-205.0,0.00033296,2]
[313402199,1707312642043,-154.04,0.000333,2]
[313402201,1707312642052,-154.04,0.000333,2]
[313402203,1707312642062,-154.04,0.000333,2]
[313402205,1707312642071,-224.13,0.00033378,2]
[313402207,1707312642080,-757.69,0.00033471,2]
[313402209,1707312642090,-202571.96385169,0.000335,2]
[313402211,1707312642099,-292.0,0.00033539,5]
[313402213,1707312642108,-2119.13818507,0.00033539,5]
[313402215,1707312642117,-6457.68059817,0.00033549,4]
[313402217,1707312642127,-2029.33,0.00033598,2]
[313402219,1707312642135,-150.0,0.00033638,7]
[313402221,1707312642145,-2119.13818507,0.00033709,6]
[313402223,1707312642154,-1561.71227994,0.0003372,6]
[313402224,1707312642163,-635.40547048,0.00033773,7]
[313402225,1707312642173,-635.40547047,0.00033837,7]
[313402226,1707312642182,-79901.49501999,0.0003386,2]
[313402227,1707312642199,-1243.14480617,0.0003386,2]
[313402228,1707312642210,-4423.3,0.0003386,2]
[313402229,1707312642221,-10777.75,0.0003386,2]
[313402238,1707312642306,-1894.46551974,0.00024387,2]
[313402239,1707312642332,-1084.70248026,0.00024387,2]
[313402240,1707312642342,-411.72530062,0.0003386,2]
[313402241,1707312642353,-14843.58487322,0.0003386,2]
[313402242,1707312642363,-1446.07207745,0.00033873,2]
[313402243,1707312642372,-194.27112981,0.000339,6]
[313402244,1707312642382,-635.40547047,0.000339,7]
[313402245,1707312642390,-285.70546235,0.00033957,3]
[313402247,1707312642402,-736.86733978,0.00033957,3]
[313402249,1707312642412,-3024.40169761,0.0003399,6]
[313402276,1707312643294,-11809.56559789,0.0003399,6]